[Event "*** Titled Tuesday Blitz"]
[Site "Chess.com"]
[Date "2020.04.07"]
[Round "3"]
[White "BillieKimbah"]
[Black "Artem_Sadovsky"]
[Result "1-0"]
[WhiteElo "2871"]
[BlackElo "2634"]
[TimeControl "180+1"]
[EndTime "13:29:14 PDT"]
[Termination "BillieKimbah won on time"]

1. d4 {[%clk 0:03:00.9]} 1... g6 {[%clk 0:02:59.8]} 2. Nf3 {[%clk 0:03:01]} 2...
Bg7 {[%clk 0:02:59.5]} 3. g3 {[%clk 0:03:01.2]} 3... d6 {[%clk 0:02:58.5]} 4. c4
{[%clk 0:02:59.6]} 4... e5 {[%clk 0:02:56.7]} 5. Nc3 {[%clk 0:03:00.2]} 5... Nc6
{[%clk 0:02:54.3]} 6. dxe5 {[%clk 0:02:56.5]} 6... Nxe5 {[%clk 0:02:53.3]} 7.
Nxe5 {[%clk 0:02:56]} 7... Bxe5 {[%clk 0:02:53.6]} 8. Bg2 {[%clk 0:02:55.8]}
8... Ne7 {[%clk 0:02:47.5]} 9. O-O {[%clk 0:02:56]} 9... O-O {[%clk 0:02:47.4]}
10. Bh6 {[%clk 0:02:55.7]} 10... Re8 {[%clk 0:02:44.8]} 11. Qd2 {[%clk
0:02:56.3]} 11... Nf5 {[%clk 0:02:44.9]} 12. Bg5 {[%clk 0:02:55.8]} 12... f6
{[%clk 0:02:34.6]} 13. Bf4 {[%clk 0:02:55.7]} 13... c6 {[%clk 0:02:35.2]} 14.
Rad1 {[%clk 0:02:53.8]} 14... Qe7 {[%clk 0:02:30.1]} 15. Rfe1 {[%clk 0:02:50.4]}
15... Be6 {[%clk 0:02:28.9]} 16. b3 {[%clk 0:02:49.5]} 16... Rad8 {[%clk
0:02:27.2]} 17. e4 {[%clk 0:02:45]} 17... Bxf4 {[%clk 0:01:59.4]} 18. Qxf4
{[%clk 0:02:45.3]} 18... Ng7 {[%clk 0:01:50.7]} 19. Rd2 {[%clk 0:02:40.6]} 19...
Bf7 {[%clk 0:01:38.9]} 20. Red1 {[%clk 0:02:40.5]} 20... Ne6 {[%clk 0:01:39.6]}
21. Qe3 {[%clk 0:02:41]} 21... a5 {[%clk 0:01:28]} 22. Qb6 {[%clk 0:02:38.7]}
22... Nc5 {[%clk 0:01:18.8]} 23. Qxa5 {[%clk 0:02:36.4]} 23... Ra8 {[%clk
0:01:19.4]} 24. Qb4 {[%clk 0:02:31.9]} 24... Red8 {[%clk 0:01:09.9]} 25. h4
{[%clk 0:02:04.9]} 25... Qc7 {[%clk 0:01:09.6]} 26. Ne2 {[%clk 0:02:02.4]} 26...
Qe7 {[%clk 0:01:00.8]} 27. Nf4 {[%clk 0:01:45.3]} 27... g5 {[%clk 0:00:41.3]}
28. hxg5 {[%clk 0:01:43.8]} 28... fxg5 {[%clk 0:00:42.2]} 29. Nd3 {[%clk
0:01:40.6]} 29... Bg6 {[%clk 0:00:19.8]} 30. Nxc5 {[%clk 0:01:38.4]} 30... dxc5
{[%clk 0:00:20.7]} 31. Rxd8+ {[%clk 0:01:38.6]} 31... Rxd8 {[%clk 0:00:21.6]}
32. Rxd8+ {[%clk 0:01:38.3]} 32... Qxd8 {[%clk 0:00:22.5]} 33. Qxc5 {[%clk
0:01:30]} 33... Qd1+ {[%clk 0:00:22.5]} 34. Bf1 {[%clk 0:01:30.3]} 34... Bxe4
{[%clk 0:00:11.2]} 35. Qxg5+ {[%clk 0:01:29.3]} 35... Bg6 {[%clk 0:00:11.2]} 36.
Kg2 {[%clk 0:01:19.5]} 36... Qc2 {[%clk 0:00:06.8]} 37. c5 {[%clk 0:01:17.9]}
37... Qe4+ {[%clk 0:00:01.4]} 38. Kh2 {[%clk 0:01:17.8]} 1-0

[Event "*** Titled Tuesday Blitz"]
[Site "Chess.com"]
[Date "2020.04.07"]
[Round "3"]
[White "theprosecution1"]
[Black "Rish_97"]
[Result "1-0"]
[WhiteElo "2808"]
[BlackElo "2563"]
[TimeControl "180+1"]
[EndTime "13:29:15 PDT"]
[Termination "theprosecution1 won by resignation"]

1. e4 {[%clk 0:03:00.9]} 1... e5 {[%clk 0:02:57.7]} 2. Nf3 {[%clk 0:03:00.9]}
2... Nc6 {[%clk 0:02:58.1]} 3. Nc3 {[%clk 0:03:01.4]} 3... Nf6 {[%clk
0:02:58.2]} 4. Bb5 {[%clk 0:03:02]} 4... Bd6 {[%clk 0:02:50.9]} 5. a3 {[%clk
0:03:01.5]} 5... O-O {[%clk 0:02:50.3]} 6. d3 {[%clk 0:03:01.5]} 6... Re8 {[%clk
0:02:50.6]} 7. g4 {[%clk 0:03:00.8]} 7... Nd4 {[%clk 0:02:44.6]} 8. g5 {[%clk
0:02:46]} 8... Nxb5 {[%clk 0:02:41.1]} 9. Nxb5 {[%clk 0:02:46.9]} 9... Nh5
{[%clk 0:02:41.5]} 10. Nxd6 {[%clk 0:02:44]} 10... cxd6 {[%clk 0:02:42.4]} 11.
Nh4 {[%clk 0:02:44.5]} 11... g6 {[%clk 0:02:41.4]} 12. Nf5 {[%clk 0:02:43.7]}
12... d5 {[%clk 0:02:30.3]} 13. Nh6+ {[%clk 0:02:40.1]} 13... Kg7 {[%clk
0:02:30.1]} 14. Qf3 {[%clk 0:02:41]} 14... Qe7 {[%clk 0:02:26.5]} 15. Bd2 {[%clk
0:02:03.3]} 15... d6 {[%clk 0:02:20.1]} 16. exd5 {[%clk 0:01:57.1]} 16... e4
{[%clk 0:01:54.7]} 17. Qe3 {[%clk 0:01:23]} 17... exd3 {[%clk 0:01:42.8]} 18.
O-O {[%clk 0:01:23.3]} 18... Qxe3 {[%clk 0:01:30]} 19. fxe3 {[%clk 0:01:24.2]}
19... f5 {[%clk 0:01:09]} 20. cxd3 {[%clk 0:01:19.7]} 20... Bd7 {[%clk
0:00:58.7]} 21. Rac1 {[%clk 0:01:20.1]} 21... Rac8 {[%clk 0:00:58.1]} 22. Bc3+
{[%clk 0:01:16.8]} 22... Kf8 {[%clk 0:00:55]} 23. e4 {[%clk 0:01:17.2]} 23... f4
{[%clk 0:00:55.3]} 24. Rxf4+ {[%clk 0:01:02.7]} 24... Nxf4 {[%clk 0:00:54.9]}
25. Rf1 {[%clk 0:01:03.6]} 25... Rxc3 {[%clk 0:00:36.5]} 26. bxc3 {[%clk
0:00:59.1]} 26... Ke7 {[%clk 0:00:34.8]} 27. Rxf4 {[%clk 0:00:59.2]} 27... Rf8
{[%clk 0:00:29.4]} 28. Rxf8 {[%clk 0:00:59.1]} 28... Kxf8 {[%clk 0:00:30.3]} 29.
Kf2 {[%clk 0:01:00]} 29... Ke8 {[%clk 0:00:30.6]} 30. Kf3 {[%clk 0:00:56.4]}
30... Ke7 {[%clk 0:00:30.8]} 31. Ng4 {[%clk 0:00:55.1]} 31... Bxg4+ {[%clk
0:00:27.5]} 32. Kxg4 {[%clk 0:00:56]} 32... b5 {[%clk 0:00:28.4]} 33. h4 {[%clk
0:00:53.1]} 33... a5 {[%clk 0:00:28.1]} 34. Kf4 {[%clk 0:00:53]} 34... Kd7
{[%clk 0:00:27.9]} 35. d4 {[%clk 0:00:53.2]} 35... Ke7 {[%clk 0:00:28.3]} 36.
Ke3 {[%clk 0:00:49.2]} 36... Kd7 {[%clk 0:00:28.4]} 37. Kd3 {[%clk 0:00:49.6]}
37... Kc7 {[%clk 0:00:28.3]} 38. Kc2 {[%clk 0:00:50]} 38... Kd7 {[%clk
0:00:23.8]} 39. Kb3 {[%clk 0:00:50.2]} 1-0

[Event "*** Titled Tuesday Blitz"]
[Site "Chess.com"]
[Date "2020.04.07"]
[Round "3"]
[White "Supelyel"]
[Black "flomarechot"]
[Result "1-0"]
[WhiteElo "2378"]
[BlackElo "2169"]
[TimeControl "180+1"]
[EndTime "13:29:16 PDT"]
[Termination "Supelyel won by resignation"]

1. c4 {[%clk 0:03:00.9]} 1... e5 {[%clk 0:02:59]} 2. Nc3 {[%clk 0:03:00]} 2...
Nf6 {[%clk 0:02:58.9]} 3. g3 {[%clk 0:02:55.3]} 3... d5 {[%clk 0:02:58.8]} 4.
cxd5 {[%clk 0:02:54.6]} 4... Nxd5 {[%clk 0:02:59.7]} 5. Bg2 {[%clk 0:02:54.9]}
5... Nb6 {[%clk 0:03:00.3]} 6. Nf3 {[%clk 0:02:54.8]} 6... Nc6 {[%clk
0:03:00.5]} 7. O-O {[%clk 0:02:55.1]} 7... Be7 {[%clk 0:03:00.5]} 8. a3 {[%clk
0:02:52.9]} 8... a5 {[%clk 0:03:00.4]} 9. Na4 {[%clk 0:02:49.5]} 9... Nxa4
{[%clk 0:02:52.9]} 10. Qxa4 {[%clk 0:02:50.4]} 10... O-O {[%clk 0:02:53.3]} 11.
d3 {[%clk 0:02:46]} 11... Be6 {[%clk 0:02:44.7]} 12. Be3 {[%clk 0:02:41.5]}
12... Qd7 {[%clk 0:02:35.5]} 13. Rfc1 {[%clk 0:02:17.9]} 13... h6 {[%clk
0:02:23.8]} 14. Qb5 {[%clk 0:02:12.1]} 14... Rab8 {[%clk 0:00:56.5]} 15. Nxe5
{[%clk 0:01:13.7]} 15... Nxe5 {[%clk 0:00:56.2]} 16. Qxe5 {[%clk 0:01:11.9]}
16... Bf6 {[%clk 0:00:48]} 17. Qf4 {[%clk 0:01:11.1]} 17... Bxb2 {[%clk
0:00:37.2]} 18. Rxc7 {[%clk 0:01:10.4]} 18... Qb5 {[%clk 0:00:37.7]} 19. Rb1
{[%clk 0:01:07.7]} 19... Ba2 {[%clk 0:00:31.8]} 20. Rxb2 {[%clk 0:00:24.7]}
20... Qxb2 {[%clk 0:00:31.4]} 21. Bd4 {[%clk 0:00:24.9]} 21... Qb1+ {[%clk
0:00:26.4]} 22. Bf1 {[%clk 0:00:17.3]} 22... Rbc8 {[%clk 0:00:17.6]} 23. Qg4
{[%clk 0:00:16.8]} 23... g6 {[%clk 0:00:09.1]} 24. Rxc8 {[%clk 0:00:16.3]} 24...
Rxc8 {[%clk 0:00:10]} 25. Qxc8+ {[%clk 0:00:16.8]} 1-0

[Event "*** Titled Tuesday Blitz"]
[Site "Chess.com"]
[Date "2020.04.07"]
[Round "3"]
[White "Pavlov_Sergey"]
[Black "ShadyH9"]
[Result "1-0"]
[WhiteElo "2540"]
[BlackElo "2286"]
[TimeControl "180+1"]
[EndTime "13:29:18 PDT"]
[Termination "Pavlov_Sergey won on time"]

1. c4 {[%clk 0:03:00.9]} 1... Nf6 {[%clk 0:02:58.9]} 2. Nf3 {[%clk 0:02:57.5]}
2... g6 {[%clk 0:02:58.8]} 3. d4 {[%clk 0:02:56.8]} 3... Bg7 {[%clk 0:02:59.1]}
4. g3 {[%clk 0:02:57.2]} 4... O-O {[%clk 0:02:59.4]} 5. Bg2 {[%clk 0:02:57.7]}
5... d6 {[%clk 0:03:00]} 6. O-O {[%clk 0:02:58.3]} 6... Nbd7 {[%clk 0:03:00.6]}
7. Nc3 {[%clk 0:02:58.9]} 7... e5 {[%clk 0:03:01.1]} 8. e4 {[%clk 0:02:59.4]}
8... c6 {[%clk 0:03:01.7]} 9. Be3 {[%clk 0:02:58]} 9... Ng4 {[%clk 0:02:35.5]}
10. Bg5 {[%clk 0:02:57.5]} 10... Bf6 {[%clk 0:02:35.9]} 11. Bxf6 {[%clk
0:02:54.4]} 11... Ngxf6 {[%clk 0:02:34.2]} 12. Qd2 {[%clk 0:02:54.8]} 12... Re8
{[%clk 0:02:32.4]} 13. Rfe1 {[%clk 0:02:54.1]} 13... Qc7 {[%clk 0:02:24.7]} 14.
Rad1 {[%clk 0:02:53.1]} 14... Nf8 {[%clk 0:02:16.7]} 15. Rc1 {[%clk 0:02:41.3]}
15... Bg4 {[%clk 0:02:15]} 16. d5 {[%clk 0:02:39.7]} 16... c5 {[%clk 0:02:14.2]}
17. h3 {[%clk 0:02:38.7]} 17... Bxf3 {[%clk 0:02:13.6]} 18. Bxf3 {[%clk
0:02:38.7]} 18... a6 {[%clk 0:02:12.9]} 19. a3 {[%clk 0:02:35.5]} 19... h5
{[%clk 0:02:06.2]} 20. Bg2 {[%clk 0:02:35.1]} 20... h4 {[%clk 0:01:59.6]} 21. g4
{[%clk 0:02:32.8]} 21... N6h7 {[%clk 0:01:57.7]} 22. Nd1 {[%clk 0:02:09.3]}
22... Qe7 {[%clk 0:01:56.2]} 23. b4 {[%clk 0:02:07]} 23... b6 {[%clk 0:01:52.2]}
24. Rb1 {[%clk 0:02:07.5]} 24... Ng5 {[%clk 0:01:39.8]} 25. bxc5 {[%clk
0:02:06.7]} 25... bxc5 {[%clk 0:01:40.7]} 26. Ne3 {[%clk 0:02:04.7]} 26... Qf6
{[%clk 0:01:26.5]} 27. Rb6 {[%clk 0:02:03.3]} 27... Red8 {[%clk 0:01:02.7]} 28.
Qe2 {[%clk 0:01:59]} 28... Qf4 {[%clk 0:01:00]} 29. Nf1 {[%clk 0:01:51.8]} 29...
Nfh7 {[%clk 0:00:41.7]} 30. Reb1 {[%clk 0:01:47.9]} 30... Nf6 {[%clk 0:00:39.9]}
31. f3 {[%clk 0:01:44.4]} 31... Ne8 {[%clk 0:00:35.4]} 32. Qe3 {[%clk
0:01:41.7]} 32... Qf6 {[%clk 0:00:35.1]} 33. a4 {[%clk 0:01:35]} 33... Ng7
{[%clk 0:00:17.6]} 34. Rc6 {[%clk 0:01:34.5]} 34... Qe7 {[%clk 0:00:11.6]} 35.
Rbb6 {[%clk 0:01:29.8]} 35... f5 {[%clk 0:00:11.7]} 36. Rxa6 {[%clk 0:01:17.1]}
36... Rxa6 {[%clk 0:00:10.8]} 37. Rxa6 {[%clk 0:01:17.1]} 37... fxe4 {[%clk
0:00:10.4]} 38. fxe4 {[%clk 0:01:16.6]} 38... Rf8 {[%clk 0:00:10.3]} 39. Rb6
{[%clk 0:01:13.4]} 39... Rf4 {[%clk 0:00:05.5]} 40. a5 {[%clk 0:01:10.9]} 1-0

[Event "*** Titled Tuesday Blitz"]
[Site "Chess.com"]
[Date "2020.04.07"]
[Round "3"]
[White "IAgrest"]
[Black "2165149677570"]
[Result "0-1"]
[WhiteElo "2113"]
[BlackElo "2362"]
[TimeControl "180+1"]
[EndTime "13:29:18 PDT"]
[Termination "2165149677570 won on time"]

1. e4 {[%clk 0:03:00.9]} 1... c5 {[%clk 0:02:59.7]} 2. Nf3 {[%clk 0:03:00.7]}
2... d6 {[%clk 0:02:52.5]} 3. d4 {[%clk 0:03:00.6]} 3... cxd4 {[%clk 0:02:46.8]}
4. Nxd4 {[%clk 0:03:01.5]} 4... Nf6 {[%clk 0:02:47]} 5. Nc3 {[%clk 0:03:02.1]}
5... a6 {[%clk 0:02:47.6]} 6. Bg5 {[%clk 0:03:01.9]} 6... e6 {[%clk 0:02:47.7]}
7. f4 {[%clk 0:03:00.6]} 7... b5 {[%clk 0:02:47.6]} 8. e5 {[%clk 0:02:39.7]}
8... dxe5 {[%clk 0:02:48.5]} 9. fxe5 {[%clk 0:02:39.1]} 9... Qc7 {[%clk
0:02:49.1]} 10. exf6 {[%clk 0:02:00.7]} 10... Qe5+ {[%clk 0:02:48.9]} 11. Be2
{[%clk 0:01:32.7]} 11... Qxg5 {[%clk 0:02:48.5]} 12. Ne4 {[%clk 0:01:28.6]}
12... Qg6 {[%clk 0:02:34.9]} 13. Bf3 {[%clk 0:01:23.6]} 13... Ra7 {[%clk
0:02:34.9]} 14. Qe2 {[%clk 0:01:07]} 14... Rd7 {[%clk 0:02:27.2]} 15. O-O-O
{[%clk 0:01:01.8]} 15... gxf6 {[%clk 0:02:18.5]} 16. Kb1 {[%clk 0:01:00.3]}
16... Bb7 {[%clk 0:01:48.9]} 17. Rhf1 {[%clk 0:00:54.2]} 17... Be7 {[%clk
0:01:48.5]} 18. h4 {[%clk 0:00:41.1]} 18... O-O {[%clk 0:01:38.2]} 19. h5 {[%clk
0:00:35.4]} 19... Qg7 {[%clk 0:01:38.5]} 20. g4 {[%clk 0:00:24.5]} 20... Rfd8
{[%clk 0:01:37.1]} 21. Nb3 {[%clk 0:00:16.9]} 21... Rxd1+ {[%clk 0:01:19.5]} 22.
Rxd1 {[%clk 0:00:17.8]} 22... Rxd1+ {[%clk 0:01:19.7]} 23. Qxd1 {[%clk
0:00:18.6]} 23... Bd5 {[%clk 0:01:20.3]} 24. Nc3 {[%clk 0:00:14.3]} 24... Bxf3
{[%clk 0:01:08.3]} 25. Qxf3 {[%clk 0:00:15.2]} 25... Qf8 {[%clk 0:01:08.8]} 26.
Qb7 {[%clk 0:00:14]} 26... Qd8 {[%clk 0:01:08.5]} 27. a3 {[%clk 0:00:12.3]}
27... Bd6 {[%clk 0:01:03.2]} 28. Nd4 {[%clk 0:00:08.5]} 28... Be5 {[%clk
0:01:01.3]} 29. Nb3 {[%clk 0:00:03]} 29... Qd6 {[%clk 0:00:56.4]} 30. Ne4 {[%clk
0:00:02.9]} 30... Qd1+ {[%clk 0:00:55]} 31. Ka2 {[%clk 0:00:02.9]} 31... Qd8
{[%clk 0:00:53]} 32. g5 {[%clk 0:00:02.7]} 32... fxg5 {[%clk 0:00:51.3]} 33. h6
{[%clk 0:00:02.9]} 33... Qd7 {[%clk 0:00:45.2]} 34. Qa8 {[%clk 0:00:02.6]} 34...
Kf8 {[%clk 0:00:38.8]} 35. Nec5 {[%clk 0:00:01.2]} 35... Qc7 {[%clk 0:00:37.1]}
0-1

[Event "*** Titled Tuesday Blitz"]
[Site "Chess.com"]
[Date "2020.04.07"]
[Round "3"]
[White "english_player_89"]
[Black "KuzubovYuriy"]
[Result "0-1"]
[WhiteElo "2569"]
[BlackElo "2818"]
[TimeControl "180+1"]
[EndTime "13:29:23 PDT"]
[Termination "KuzubovYuriy won by resignation"]

1. e4 {[%clk 0:03:00.9]} 1... c6 {[%clk 0:02:59.6]} 2. d4 {[%clk 0:03:00.4]}
2... d5 {[%clk 0:03:00.1]} 3. Nc3 {[%clk 0:03:01.3]} 3... dxe4 {[%clk
0:02:59.8]} 4. Nxe4 {[%clk 0:03:02.2]} 4... Nf6 {[%clk 0:03:00.6]} 5. Nxf6+
{[%clk 0:03:01.9]} 5... exf6 {[%clk 0:03:01.5]} 6. c3 {[%clk 0:03:01.7]} 6...
Bd6 {[%clk 0:03:01.7]} 7. Bd3 {[%clk 0:03:01.7]} 7... O-O {[%clk 0:03:02.2]} 8.
Ne2 {[%clk 0:03:01.4]} 8... Re8 {[%clk 0:03:02.1]} 9. Qc2 {[%clk 0:02:59.9]}
9... h5 {[%clk 0:03:01.6]} 10. O-O {[%clk 0:02:55.2]} 10... h4 {[%clk
0:03:00.1]} 11. Bf4 {[%clk 0:02:35.4]} 11... h3 {[%clk 0:02:23.5]} 12. Bxd6
{[%clk 0:02:26.6]} 12... hxg2 {[%clk 0:02:19]} 13. Kxg2 {[%clk 0:02:17.7]} 13...
Qxd6 {[%clk 0:02:16.4]} 14. Ng3 {[%clk 0:02:14.7]} 14... Nd7 {[%clk 0:01:58.2]}
15. Rae1 {[%clk 0:02:13.1]} 15... Rxe1 {[%clk 0:01:55.5]} 16. Rxe1 {[%clk
0:02:12.6]} 16... Nf8 {[%clk 0:01:54.9]} 17. Qe2 {[%clk 0:01:48.5]} 17... Bd7
{[%clk 0:01:42.9]} 18. Qe7 {[%clk 0:01:27.6]} 18... Qd5+ {[%clk 0:01:32.4]} 19.
Be4 {[%clk 0:00:55.1]} 19... Qxa2 {[%clk 0:01:26]} 20. d5 {[%clk 0:00:52.1]}
20... Re8 {[%clk 0:01:10.7]} 21. Qd6 {[%clk 0:00:43.7]} 21... Qxb2 {[%clk
0:00:47.5]} 22. dxc6 {[%clk 0:00:41.7]} 22... Bxc6 {[%clk 0:00:45]} 23. Re3
{[%clk 0:00:31]} 23... Rxe4 {[%clk 0:00:39.8]} 24. Nxe4 {[%clk 0:00:31.9]} 24...
f5 {[%clk 0:00:39.4]} 25. Kg3 {[%clk 0:00:17.3]} 25... fxe4 {[%clk 0:00:35.4]}
26. f3 {[%clk 0:00:10.7]} 26... exf3 {[%clk 0:00:32.5]} 27. Qf4 {[%clk
0:00:08.1]} 27... Qg2+ {[%clk 0:00:31.5]} 28. Kh4 {[%clk 0:00:06.9]} 28... Ng6+
{[%clk 0:00:32.4]} 29. Kh5 {[%clk 0:00:05.8]} 29... Nxf4+ {[%clk 0:00:33.3]} 0-1

[Event "*** Titled Tuesday Blitz"]
[Site "Chess.com"]
[Date "2020.04.07"]
[Round "3"]
[White "TheBigBoss04"]
[Black "Stameny"]
[Result "1-0"]
[WhiteElo "2791"]
[BlackElo "2461"]
[TimeControl "180+1"]
[EndTime "13:29:26 PDT"]
[Termination "TheBigBoss04 won by resignation"]

1. Nf3 {[%clk 0:03:00.9]} 1... Nf6 {[%clk 0:02:58.1]} 2. g3 {[%clk 0:03:01.4]}
2... d5 {[%clk 0:02:57]} 3. Bg2 {[%clk 0:03:01.9]} 3... c6 {[%clk 0:02:57.6]} 4.
O-O {[%clk 0:03:02.4]} 4... Bf5 {[%clk 0:02:52.5]} 5. c4 {[%clk 0:03:01.2]} 5...
e6 {[%clk 0:02:52.1]} 6. d3 {[%clk 0:03:01.5]} 6... Nbd7 {[%clk 0:02:51.1]} 7.
cxd5 {[%clk 0:03:00.4]} 7... exd5 {[%clk 0:02:50.5]} 8. Nc3 {[%clk 0:03:01.2]}
8... Be7 {[%clk 0:02:49.5]} 9. Nh4 {[%clk 0:03:00.9]} 9... Be6 {[%clk
0:02:47.8]} 10. e4 {[%clk 0:03:01]} 10... dxe4 {[%clk 0:02:45.9]} 11. dxe4
{[%clk 0:03:00.8]} 11... O-O {[%clk 0:02:44.2]} 12. h3 {[%clk 0:02:52.9]} 12...
Qb6 {[%clk 0:02:28.1]} 13. Kh2 {[%clk 0:02:49.4]} 13... Rad8 {[%clk 0:02:27.2]}
14. Qc2 {[%clk 0:02:44.6]} 14... Ne5 {[%clk 0:02:04.2]} 15. Bf4 {[%clk
0:02:41.4]} 15... Nfd7 {[%clk 0:01:58.1]} 16. Nf5 {[%clk 0:02:38.2]} 16... Bxf5
{[%clk 0:01:57.9]} 17. exf5 {[%clk 0:02:39.1]} 17... Rfe8 {[%clk 0:01:27.3]} 18.
Rad1 {[%clk 0:02:38.8]} 18... Bf8 {[%clk 0:01:19]} 19. Bg5 {[%clk 0:02:38.4]}
19... f6 {[%clk 0:01:18.7]} 20. Be3 {[%clk 0:02:38.1]} 20... Qa5 {[%clk
0:01:18]} 21. a3 {[%clk 0:02:34.5]} 21... Kh8 {[%clk 0:01:17]} 22. Bd4 {[%clk
0:02:20.9]} 22... Qc7 {[%clk 0:01:11]} 23. Nd5 {[%clk 0:02:17.7]} 23... Qb8
{[%clk 0:01:04.3]} 24. Nf4 {[%clk 0:02:17.6]} 24... Nb6 {[%clk 0:01:03.5]} 25.
Ne6 {[%clk 0:02:14.9]} 25... Rd7 {[%clk 0:01:02.5]} 26. f4 {[%clk 0:02:08.5]}
26... Nf7 {[%clk 0:00:58.3]} 27. Bxb6 {[%clk 0:02:02.3]} 27... Rxd1 {[%clk
0:00:58.1]} 28. Bc7 {[%clk 0:02:00.4]} 28... Rxf1 {[%clk 0:00:48.4]} 29. Bxb8
{[%clk 0:02:00.2]} 29... Re1 {[%clk 0:00:45.6]} 30. Bxa7 {[%clk 0:01:58.9]}
30... Nd8 {[%clk 0:00:45.8]} 31. Bf2 {[%clk 0:01:58.4]} 31... Ra1 {[%clk
0:00:43.5]} 32. Nxf8 {[%clk 0:01:57.1]} 32... Rxf8 {[%clk 0:00:43.1]} 33. Qe2
{[%clk 0:01:54.8]} 33... Nf7 {[%clk 0:00:37.6]} 34. Qe7 {[%clk 0:01:54]} 34...
Kg8 {[%clk 0:00:37.9]} 35. Bf3 {[%clk 0:01:44.8]} 35... Rd8 {[%clk 0:00:35]} 36.
Be2 {[%clk 0:01:44.6]} 36... Rc1 {[%clk 0:00:33.2]} 37. Bb6 {[%clk 0:01:39.6]}
37... Rc8 {[%clk 0:00:28.8]} 38. Qe6 {[%clk 0:01:38.8]} 38... Ra8 {[%clk
0:00:27.6]} 39. Bc4 {[%clk 0:01:38]} 39... Rc2+ {[%clk 0:00:26]} 40. Kg1 {[%clk
0:01:38.2]} 40... Rf8 {[%clk 0:00:25.7]} 41. Bc5 {[%clk 0:01:38.3]} 41... Rxc4
{[%clk 0:00:24.7]} 42. Qxc4 {[%clk 0:01:36.9]} 42... Re8 {[%clk 0:00:24.4]} 43.
Kf2 {[%clk 0:01:35.7]} 43... h5 {[%clk 0:00:24.7]} 44. g4 {[%clk 0:01:35.4]}
44... hxg4 {[%clk 0:00:24.5]} 45. hxg4 {[%clk 0:01:36.2]} 45... Rd8 {[%clk
0:00:24.6]} 46. g5 {[%clk 0:01:35.9]} 46... fxg5 {[%clk 0:00:24.9]} 47. fxg5
{[%clk 0:01:36.6]} 47... Rd5 {[%clk 0:00:25.1]} 48. g6 {[%clk 0:01:35.8]} 48...
Nh6 {[%clk 0:00:25.4]} 49. Qe4 {[%clk 0:01:24.3]} 49... Rxf5+ {[%clk 0:00:23.7]}
50. Kg3 {[%clk 0:01:22.2]} 50... Rg5+ {[%clk 0:00:20.4]} 51. Kh4 {[%clk
0:01:18.1]} 51... Rg4+ {[%clk 0:00:13.6]} 52. Qxg4 {[%clk 0:01:18.1]} 52... Nxg4
{[%clk 0:00:14.5]} 53. Kxg4 {[%clk 0:01:18.8]} 1-0

[Event "*** Titled Tuesday Blitz"]
[Site "Chess.com"]
[Date "2020.04.07"]
[Round "3"]
[White "zacachess"]
[Black "Stouuf"]
[Result "1-0"]
[WhiteElo "2291"]
[BlackElo "2505"]
[TimeControl "180+1"]
[EndTime "13:29:27 PDT"]
[Termination "zacachess won on time"]

1. e4 {[%clk 0:03:00.9]} 1... d6 {[%clk 0:02:59.3]} 2. d4 {[%clk 0:03:00.4]}
2... Nf6 {[%clk 0:02:58.7]} 3. Nc3 {[%clk 0:03:00.8]} 3... e5 {[%clk 0:02:59.1]}
4. Nf3 {[%clk 0:02:59.4]} 4... Nbd7 {[%clk 0:02:58]} 5. Bc4 {[%clk 0:02:59.4]}
5... exd4 {[%clk 0:02:58.3]} 6. Nxd4 {[%clk 0:02:58.1]} 6... Nb6 {[%clk
0:02:58.9]} 7. Bb3 {[%clk 0:02:56.4]} 7... c5 {[%clk 0:02:59.5]} 8. Nf3 {[%clk
0:02:16.2]} 8... c4 {[%clk 0:02:58]} 9. e5 {[%clk 0:02:16.2]} 9... dxe5 {[%clk
0:02:42]} 10. Ba4+ {[%clk 0:02:05.4]} 10... Nxa4 {[%clk 0:02:35.2]} 11. Qxd8+
{[%clk 0:02:03.2]} 11... Kxd8 {[%clk 0:02:36.1]} 12. Nxa4 {[%clk 0:02:03.4]}
12... Bd6 {[%clk 0:02:28]} 13. Bg5 {[%clk 0:01:59.8]} 13... Bg4 {[%clk
0:02:24.4]} 14. O-O-O {[%clk 0:01:58.1]} 14... Kc7 {[%clk 0:02:24.7]} 15. Nc3
{[%clk 0:01:56.5]} 15... Bxf3 {[%clk 0:02:21.4]} 16. gxf3 {[%clk 0:01:53.2]}
16... Kc6 {[%clk 0:02:19.4]} 17. Bxf6 {[%clk 0:01:41.6]} 17... gxf6 {[%clk
0:02:20.3]} 18. Ne4 {[%clk 0:01:41.8]} 18... Be7 {[%clk 0:02:19]} 19. Rhg1
{[%clk 0:01:41.3]} 19... Rhg8 {[%clk 0:02:18.7]} 20. c3 {[%clk 0:01:39.2]} 20...
Rg6 {[%clk 0:02:17.7]} 21. Ng3 {[%clk 0:01:36.3]} 21... Rag8 {[%clk 0:02:13.6]}
22. Rd2 {[%clk 0:01:30.2]} 22... Rh6 {[%clk 0:02:11.6]} 23. Rgd1 {[%clk
0:01:24.5]} 23... Rxh2 {[%clk 0:02:11.5]} 24. Nf5 {[%clk 0:01:24]} 24... Bc5
{[%clk 0:02:11.5]} 25. Rd7 {[%clk 0:01:14.9]} 25... Rg5 {[%clk 0:01:32.2]} 26.
Ne3 {[%clk 0:01:04.4]} 26... Rxf2 {[%clk 0:01:20.6]} 27. Nxc4 {[%clk 0:01:01.2]}
27... Rgg2 {[%clk 0:01:09]} 28. a4 {[%clk 0:00:48]} 28... Bd4 {[%clk 0:00:43.4]}
29. Rxf7 {[%clk 0:00:41.4]} 29... Kc5 {[%clk 0:00:33.6]} 30. Rc7+ {[%clk
0:00:37.9]} 30... Kd5 {[%clk 0:00:31.9]} 31. cxd4 {[%clk 0:00:36.4]} 31... Rc2+
{[%clk 0:00:28.6]} 32. Kb1 {[%clk 0:00:36.8]} 32... Ke6 {[%clk 0:00:15.1]} 33.
d5+ {[%clk 0:00:34.6]} 33... Kf5 {[%clk 0:00:15.6]} 34. Ne3+ {[%clk 0:00:32.6]}
1-0